bitfinex-derivatives/quotes_ETHF0:USTF0_20251009
["timestamp","ask_amount","ask_price","bid_price","bid_amount"]
[1760010534726,0.3901,4380.3,4380.2,0.2654]
[1760010534915,1.2871,4380.3,4380.2,0.9437]
[1760010535121,2.08262325,4380.3,4380.2,0.9437]
[1760010535927,1.67182325,4380.3,4380.2,1.35451]
[1760010536124,2.08262325,4380.3,4380.2,0.9437]
[1760010536828,2.08262325,4380.3,4380.2,0.4162]
[1760010537029,0.93422,4380.1,4380.0,0.2654]
[1760010537233,1.85364325,4380.1,4380.0,0.6816]
[1760010538322,1.44282325,4380.1,4380.0,1.09243]
[1760010538631,1.44282325,4380.1,4380.0,1.35453]
[1760010539225,0.9083,4379.8,4379.7,1.07096]
[1760010539425,1.1373,4379.8,4379.7,1.07096]
[1760010539625,1.1373,4379.8,4379.7,1.33026]
[1760010540332,1.54815,4379.8,4379.7,0.9194]
[1760010540630,0.4972,4379.8,4379.7,1.33026]
[1760010540830,0.63985,4379.8,4379.7,0.9194]
[1760010541630,1.28715,4379.8,4379.7,0.6601]
[1760010541930,1.54815,4379.8,4379.7,0.9194]
[1760010543429,1.54815,4379.8,4379.7,0.2563]
[1760010543733,1.31918,4379.5,4379.4,3.8679]
[1760010544933,1.48148,4379.5,4379.4,3.4641]
[1760010545532,1.48148,4379.5,4379.4,3.2078]
[1760010546128,1.31918,4379.5,4379.4,4.1272]
[1760010546631,3.737,4380.3,4380.2,0.5156]
[1760010546829,4.90689889,4380.3,4380.2,0.9194]
[1760010547028,7.81360318,4380.3,4380.2,0.9194]
[1760010547229,8.19270318,4380.3,4380.2,0.6601]
[1760010547533,0.41087,4379.6,4379.5,41.3617]
[1760010547729,0.63987,4379.6,4379.5,41.3617]
[1760010547935,1.01897,4379.6,4379.5,41.3617]
[1760010550132,0.63987,4379.6,4379.5,41.3617]
[1760010550330,0.229,4379.6,4379.5,41.3617]
[1760010550531,0.00285689,4380.4,4380.3,0.9194]
[1760010550732,0.23185689,4380.4,4380.3,0.9194]
[1760010550935,3.2078,4381.4,4380.5,0.6735]
[1760010551235,3.2078,4381.4,4381.3,0.9194]
[1760010551236,3.6185,4381.4,4381.3,0.9194]
[1760010551435,3.8475,4381.4,4381.3,0.9194]
[1760010551637,4.1157,4381.4,4381.3,0.9194]
[1760010552036,4.11731689,4381.4,4381.3,0.9194]
[1760010552341,0.90951689,4381.4,4381.3,41.7194]
[1760010552538,0.64131689,4381.4,4381.3,41.7194]
[1760010553038,0.00161689,4381.4,4381.3,41.7194]
[1760010553229,0.23061689,4381.4,4381.3,41.7194]
[1760010555337,0.23061689,4381.4,4381.3,44.9272]
[1760010556229,0.60971689,4381.4,4381.3,44.9272]
[1760010557335,3.60167126,4381.4,4381.3,41.0563]
[1760010557834,3.60167126,4381.4,4381.3,41.4601]
[1760010558942,0.00161689,4381.4,4381.3,44.6679]
[1760010559234,0.23061689,4381.4,4381.3,44.6679]
[1760010561837,0.00161689,4381.4,4381.3,44.6679]
[1760010562842,2.91529993,4381.4,4381.3,44.6679]
[1760010563243,0.00161689,4381.4,4381.3,44.6679]
[1760010565038,0.41231689,4381.4,4381.3,44.6679]
[1760010565847,1.31903,4381.1,4381.0,0.6601]
[1760010566236,1.31903,4381.1,4381.0,41.4601]
[1760010567343,1.31903,4381.1,4381.0,41.618]
[1760010567538,1.0269,4380.8,4380.3,3.2078]
[1760010567743,1.0269,4380.8,4380.3,4.1272]
[1760010567744,1.31909,4380.4,4380.3,4.1272]
[1760010567940,1.31909,4380.4,4380.3,44.9272]
[1760010568944,0.93999,4380.4,4380.3,44.9272]
[1760010570343,0.67899,4380.4,4380.3,44.9272]
[1760010570745,1.07069,4380.4,4380.3,44.9272]
[1760010570943,1.07069,4380.4,4380.3,44.2641]
[1760010570944,4.10694883,4380.4,4380.3,44.2641]
[1760010571147,4.38204883,4380.4,4380.3,3.2078]
[1760010571543,4.38204883,4380.4,4380.3,4.0996]
[1760010571749,3.94424883,4380.4,4380.3,4.0996]
[1760010571950,4.61104883,4380.4,4380.3,4.0996]
[1760010573049,4.61104883,4380.4,4380.3,3.8347]
[1760010573246,4.61104883,4380.4,4380.3,3.4546]
[1760010573749,0.41082,4380.1,4380.0,41.3424]
[1760010574052,3.42429881,4380.1,4380.0,41.3424]
[1760010574953,1.02693,4380.7,4380.3,0.8918]
[1760010575154,0.88447,4380.6,4380.5,0.674]
[1760010575355,4.55075509,4380.6,4380.5,1.0541]
[1760010575849,4.55075509,4380.6,4380.5,0.8918]
[1760010578157,3.2078,4380.9,4380.5,1.0541]
[1760010578459,1.02838689,4381.4,4380.7,0.8918]
[1760010578460,0.63976,4380.8,4380.7,0.8918]
[1760010579456,0.88446,4380.8,4380.7,0.8918]
[1760010579661,0.63976,4380.8,4380.7,0.8918]
[1760010579858,0.88446,4380.8,4380.7,0.8918]
[1760010580463,1.32228,4380.5,4380.4,3.8347]
[1760010580659,1.55128,4380.5,4380.4,3.8347]
[1760010580964,4.55618854,4380.5,4380.4,4.0996]
[1760010582858,0.41082,4380.1,4380.0,41.3424]
[1760010583056,1.03152,4380.1,4380.0,41.3424]
[1760010583254,4.00321705,4380.1,4380.0,41.1801]
[1760010583455,4.00321705,4380.1,4380.0,40.8]
[1760010583861,0.3917,4379.9,4379.5,0.2468]
[1760010584062,0.9115,4379.6,4379.5,0.8918]
[1760010584366,0.9115,4379.6,4379.5,41.6918]
[1760010584660,4.28363645,4379.6,4379.5,41.6918]
[1760010584862,4.28363645,4379.6,4379.5,41.0468]
[1760010585067,1.27041,4379.1,4379.0,0.00240115]
[1760010585364,4.51007097,4379.1,4379.0,0.00240115]
[1760010585563,4.51007097,4379.1,4379.0,40.80240115]
[1760010587659,4.51007097,4379.1,4379.0,41.17760115]
[1760010587959,11.49735934,4380.6,4379.0,41.17760115]
[1760010587960,0.41091,4379.2,4379.1,0.876]
[1760010588165,0.63991,4379.2,4379.1,0.876]
[1760010594862,0.41091,4379.2,4379.1,0.876]
[1760010595054,0.229,4379.3,4379.2,0.41091]
[1760010595259,0.41085,4379.8,4379.7,0.876]
[1760010595660,0.41085,4379.8,4379.7,41.676]
[1760010599163,0.229,4379.9,4379.8,0.8886]
[1760010599164,0.63984,4379.9,4379.8,0.8886]
[1760010599463,0.1826,4380.2,4380.1,0.8886]
[1760010599660,1.08051,4380.2,4380.1,0.8886]
[1760010599866,0.89791,4380.2,4380.1,0.8886]
[1760010600069,1.16441,4380.2,4380.1,0.8886]
[1760010600364,0.77515,4379.8,4379.7,40.8]
[1760010600565,1.00415,4379.8,4379.7,40.8]
[1760010600870,3.99146121,4379.8,4379.7,40.8]
[1760010601764,4.52009216,4379.8,4379.7,40.8]
[1760010601959,0.4109,4379.3,4379.2,3.5864]
[1760010602164,1.5288,4379.3,4379.2,3.8405]
[1760010602563,1.5288,4379.3,4379.2,44.6405]
[1760010604074,4.45553528,4379.3,4379.2,0.6327]
[1760010605374,1.29981,4379.1,4379.0,0.63510115]
[1760010606478,1.29981,4379.1,4379.0,0.89100115]
[1760010607275,1.29981,4379.1,4379.0,0.63510115]
[1760010607774,0.66901,4379.1,4379.0,1.04290115]
[1760010609370,1.03331,4379.1,4379.0,1.04290115]
[1760010609572,1.29981,4379.1,4379.0,1.04290115]
[1760010610375,4.26495846,4379.1,4379.0,0.63510115]
[1760010610576,4.26495846,4379.1,4379.0,0.25650115]
[1760010611573,4.26495846,4379.1,4379.0,0.63510115]
[1760010613275,4.26495846,4379.1,4379.0,0.00240115]
[1760010614474,0.93558,4378.4,4378.3,0.6327]
[1760010614778,1.52888,4378.4,4378.3,0.8886]
[1760010614981,1.16458,4378.4,4378.3,41.6886]
[1760010615471,0.89808,4378.4,4378.3,41.69112386]
[1760010615672,0.63998,4378.4,4378.3,41.69112386]
[1760010625683,1.00428,4378.4,4378.3,41.69112386]
[1760010626080,1.00428,4378.4,4378.3,40.80252386]
[1760010626386,3.94911458,4378.4,4378.3,40.80252386]
[1760010627883,12.68635032,4378.4,4378.3,40.80252386]
[1760010628084,13.21095032,4378.4,4378.3,0.00252386]
[1760010628581,13.21095032,4378.4,4378.3,40.80252386]
[1760010629379,13.21095032,4378.4,4377.9,0.02284226]
[1760010629380,1.47222,4378.0,4377.9,0.02284226]
[1760010629683,0.9055,4377.3,4377.2,0.3652]
[1760010629884,1.54558,4377.3,4377.2,0.3652]
[1760010630083,1.54558,4377.3,4376.6,3.7121]
[1760010630084,0.41114,4376.7,4376.6,3.7121]
[1760010630383,0.64268851,4376.7,4376.6,44.88022943]
[1760010630574,0.23154851,4376.7,4376.6,44.88022943]
[1760010630974,0.00254851,4376.7,4376.6,49.88022943]
[1760010631175,0.41108,4377.4,4377.3,0.8695]
[1760010631379,0.229,4377.4,4377.3,0.8695]
[1760010631776,0.41107,4377.5,4377.4,0.3652]
[1760010631976,0.64007,4377.5,4377.4,0.8695]
[1760010632177,0.64301802,4377.5,4377.4,41.6695]
[1760010632377,0.00294802,4377.5,4377.4,41.6695]
[1760010633876,0.38554802,4377.5,4377.4,41.6695]
[1760010635586,0.00294802,4377.5,4377.4,41.6695]
[1760010635886,0.41401802,4377.5,4377.4,41.6695]
[1760010636985,0.79661802,4377.5,4377.4,41.6695]
[1760010640381,0.41401802,4377.5,4377.4,41.6695]
[1760010642486,0.23194802,4377.5,4377.4,41.6695]
[1760010642687,0.64301802,4377.5,4377.4,41.6695]
[1760010642889,0.00294802,4377.5,4377.4,42.08057]
[1760010643289,0.00294802,4377.5,4377.4,41.6695]
[1760010643486,0.41401802,4377.5,4377.4,41.6695]
[1760010643686,0.41401802,4377.5,4377.4,42.08057]
[1760010644090,0.41401802,4377.5,4377.4,41.6695]
[1760010647197,0.00294802,4377.5,4377.4,41.6695]
[1760010647497,0.41401802,4377.5,4377.4,41.6695]
[1760010648896,0.41401802,4377.5,4377.4,42.08057]
[1760010649598,0.41401802,4377.5,4377.4,45.28837]
[1760010650193,0.00294802,4377.5,4377.4,45.28837]
[1760010650796,0.41401802,4377.5,4377.4,45.28837]
[1760010651296,0.00294802,4377.5,4377.4,45.28837]
[1760010653097,0.1557,4379.5,4378.0,1.063]
[1760010653098,0.41101,4378.1,4378.0,1.063]
[1760010653401,0.41101,4378.1,4378.0,4.2708]
[1760010653903,0.41101,4378.1,4378.0,45.0708]
[1760010654102,0.413003,4378.1,4378.0,45.0708]
[1760010654605,0.001993,4378.1,4378.0,45.48182]
[1760010654998,0.413003,4378.1,4378.0,45.48182]
[1760010656099,0.001993,4378.1,4378.0,45.48182]
[1760010656305,0.413003,4378.1,4378.0,45.48182]
[1760010656606,0.001993,4378.1,4378.0,45.48182]
[1760010656898,0.001993,4378.1,4378.0,45.71082]
[1760010657702,0.413003,4378.1,4378.0,45.0708]
[1760010657902,0.413003,4378.1,4378.0,45.2998]
[1760010658103,0.413003,4378.1,4378.0,45.71082]
[1760010659304,0.413003,4378.1,4378.0,45.48182]
[1760010659500,0.413003,4378.1,4378.0,45.71082]
[1760010659702,0.413003,4378.1,4378.0,45.2998]
[1760010660205,0.413003,4378.1,4378.0,45.48182]
[1760010662804,0.413003,4378.1,4378.0,45.0708]
[1760010663005,0.769703,4378.1,4378.0,45.0708]
[1760010663706,0.769703,4378.1,4378.0,44.9137]
[1760010663907,0.413003,4378.1,4378.0,45.0694]
[1760010664510,0.769703,4378.1,4378.0,44.9137]
[1760010666112,0.413003,4378.1,4378.0,45.0694]
[1760010666914,0.642003,4378.1,4378.0,45.0694]
[1760010667317,0.998703,4378.1,4378.0,45.0694]
[1760010667928,0.998703,4378.1,4378.0,44.9137]
[1760010668427,0.998703,4378.1,4378.0,44.6247]
[1760010669222,0.998703,4378.1,4378.0,40.8]
[1760010669223,8.96071369,4378.1,4378.0,40.8]
[1760010669429,1.27616,4377.6,4377.5,4.0518]
[1760010669822,3.83013139,4377.6,4377.5,4.2075]
[1760010670030,4.05913139,4377.6,4377.5,45.0075]
[1760010670522,0.41106,4377.6,4377.5,45.0075]
[1760010670716,0.255393,4378.1,4378.0,0.3938]
[1760010670922,0.841093,4378.1,4378.0,0.9997]
[1760010671121,3.40854234,4378.1,4378.0,4.2075]
[1760010671325,3.89094234,4378.1,4378.0,3.7222]
[1760010671629,4.50264234,4378.1,4378.0,4.2075]
[1760010672520,4.50264234,4378.1,4378.0,4.0518]
[1760010672721,4.50264234,4378.1,4378.0,3.5665]
[1760010672920,0.41106,4377.6,4377.5,44.1635]
[1760010673124,0.41106,4377.6,4377.5,44.5222]
[1760010674626,0.76776,4377.6,4377.5,44.0078]
[1760010674823,3.72832283,4377.6,4377.5,44.0078]
[1760010675125,3.95732283,4377.6,4377.5,44.3665]
[1760010677023,3.95732283,4377.6,4377.5,44.5222]
[1760010677524,3.95732283,4377.6,4377.5,44.3665]
[1760010677830,3.60062283,4377.6,4377.5,44.5222]
[1760010678023,3.95732283,4377.6,4377.5,44.3665]
[1760010678228,3.54626283,4377.6,4377.5,44.5222]
[1760010678419,2.96056283,4377.6,4377.5,44.5222]
[1760010678728,0.41105,4377.7,4377.6,0.844]
[1760010678929,0.64005,4377.7,4377.6,0.844]
[1760010679227,1.50515,4377.7,4377.6,0.844]
[1760010679818,0.41106,4377.6,4377.5,44.0078]
[1760010680021,0.76776,4377.6,4377.5,44.0078]
[1760010680226,3.64736371,4377.6,4377.5,44.1635]
[1760010680622,4.00406371,4377.6,4377.5,44.5222]
[1760010682632,3.77506371,4377.6,4377.5,44.5222]
[1760010682930,3.64736371,4377.6,4377.5,44.5222]
[1760010683125,0.41104,4377.8,4377.5,44.5222]
[1760010683328,1.278103,4378.1,4378.0,0.5968]
[1760010683528,2.03714718,4378.1,4378.0,0.5968]
[1760010683731,5.0453952,4378.1,4378.0,0.5968]
[1760010684238,5.0453952,4378.1,4378.0,0.844]
[1760010684629,4.8163952,4378.1,4378.0,0.844]
[1760010684825,5.0453952,4378.1,4378.0,0.844]
[1760010685236,4.8163952,4378.1,4378.0,0.844]
[1760010685533,5.0453952,4378.1,4378.0,0.844]
[1760010686330,4.8163952,4378.1,4378.0,0.844]
[1760010686527,5.0453952,4378.1,4378.0,0.844]
[1760010686932,4.8163952,4378.1,4378.0,0.844]
[1760010687132,5.0453952,4378.1,4378.0,0.844]
[1760010689638,5.0453952,4378.1,4377.5,44.0078]
[1760010689639,0.41106,4377.6,4377.5,44.0078]
[1760010689832,1.49926,4377.6,4377.5,0.834]
[1760010690030,5.00144001,4377.6,4377.5,0.834]
[1760010690934,4.46883106,4377.6,4377.5,0.834]
[1760010691136,5.00146163,4377.6,4377.5,0.834]
[1760010691432,5.00143172,4377.6,4377.5,0.834]
[1760010692137,5.00149061,4377.6,4377.5,0.834]
[1760010692531,4.77249061,4377.6,4377.5,0.834]
[1760010692733,0.4852,4377.2,4377.1,41.1505]
[1760010692934,1.49929,4377.2,4377.1,41.1505]
[1760010693337,4.48618388,4377.2,4377.1,41.1505]
[1760010694037,0.8592,4377.6,4377.5,0.4835]
[1760010694240,1.62090129,4377.6,4377.5,0.9782]
[1760010694444,4.95425503,4377.6,4377.5,0.9782]
[1760010695043,4.42155374,4377.6,4377.5,0.9782]
[1760010695241,4.35128646,4377.6,4377.5,0.9782]
[1760010695543,4.58028646,4377.6,4377.5,0.9782]
[1760010695938,4.95428646,4377.6,4377.5,0.834]
[1760010696138,4.95428646,4377.6,4377.5,0.5829]
[1760010696339,4.95428646,4377.6,4377.1,40.8]
[1760010696340,0.41109,4377.2,4377.1,40.8]
[1760010696539,1.01409,4377.2,4377.1,41.1505]
[1760010698840,4.04830926,4377.2,4377.1,41.1505]
[1760010699044,3.67430926,4377.2,4377.1,41.1505]
[1760010700748,4.04830926,4377.2,4377.1,41.1505]
[1760010701648,4.22626901,4377.2,4377.1,41.1505]
[1760010701846,4.04830926,4377.2,4377.1,41.1505]
[1760010704448,0.64009,4377.2,4377.1,41.1505]
[1760010704649,0.41109,4377.2,4377.1,41.1505]
[1760010704847,0.64009,4377.2,4377.1,41.1505]
[1760010707358,0.41109,4377.2,4377.1,41.1505]
[1760010707563,3.209793,4378.1,4378.0,0.1483]
[1760010707754,0.642003,4378.1,4378.0,0.9757]
[1760010708248,0.642003,4378.1,4378.0,41.7757]
[1760010708850,0.413003,4378.1,4378.0,41.7757]
[1760010709253,0.642003,4378.1,4378.0,41.7757]
[1760010710055,0.001993,4378.1,4378.0,41.7757]
[1760010710261,0.230993,4378.1,4378.0,42.18672]
[1760010710760,3.2078,4379.1,4379.0,0.9757]
[1760010710959,4.6221264,4379.1,4379.0,0.9757]
[1760010711157,8.21131613,4379.1,4379.0,0.9757]
[1760010711359,8.21131613,4379.1,4379.0,41.6274]
[1760010711662,8.21294721,4379.1,4379.0,41.6274]
[1760010712655,7.98394721,4379.1,4379.0,41.6274]
[1760010712854,8.21294721,4379.1,4379.0,41.6274]
[1760010713356,7.68053081,4379.1,4379.0,41.6274]
[1760010714063,7.08993081,4379.1,4379.0,41.7757]
[1760010714966,6.61893081,4379.1,4379.0,41.7757]
[1760010715263,3.22922081,4379.1,4379.0,41.7757]
[1760010715463,3.58452081,4379.1,4379.0,41.6274]
[1760010716067,3.58452081,4379.1,4379.0,41.7757]
[1760010716770,3.22922081,4379.1,4379.0,41.7757]
[1760010717968,3.00022081,4379.1,4379.0,41.7757]
[1760010718261,0.23063108,4379.1,4379.0,41.7757]
[1760010719056,0.3553,4379.8,4379.0,41.7757]
[1760010719258,0.90649,4379.4,4379.3,3.806]
[1760010719567,4.47353301,4379.4,4379.3,0.5982]
[1760010719767,4.47353301,4379.4,4379.3,0.8401]
[1760010720268,4.47617109,4379.4,4379.3,0.8401]
[1760010720868,4.47617109,4379.4,4379.3,0.5982]
[1760010721561,0.78961,4379.1,4379.0,40.8]
[1760010721759,0.8743,4378.6,4378.5,0.2442]
[1760010721967,1.1033,4378.6,4378.5,0.2442]
[1760010722167,4.45057775,4378.6,4378.5,0.5982]
[1760010722870,4.45057775,4378.6,4378.5,41.3982]
[1760010725171,4.45057775,4378.6,4378.5,41.5365]
[1760010726065,4.45057775,4378.6,4378.5,41.3982]
[1760010728067,4.07187775,4378.6,4378.5,41.5365]
[1760010728374,3.82237775,4378.6,4378.5,41.5365]
[1760010728765,4.20107775,4378.6,4378.5,41.3982]
[1760010732066,0.00263808,4379.4,4379.3,0.2442]
[1760010732367,0.00263808,4379.4,4379.3,0.8401]
[1760010732368,3.90779352,4379.4,4379.3,0.8401]
[1760010732562,4.53599352,4379.4,4379.3,0.8401]
[1760010732967,3.02180352,4379.4,4379.3,0.8401]
[1760010733174,3.66169352,4379.4,4379.3,0.8401]
[1760010733472,3.66169352,4379.4,4379.3,41.6401]
[1760010733668,3.25080352,4379.4,4379.3,41.6401]
[1760010734177,3.66169352,4379.4,4379.3,41.6401]
[1760010734665,0.3787,4379.1,4379.0,0.41092]
[1760010734865,0.6077,4379.1,4379.0,0.58932]
[1760010735477,0.229,4379.1,4379.0,0.58932]
[1760010735771,0.229,4379.1,4379.0,44.59712]
[1760010736771,0.00263808,4379.4,4379.3,0.645]
[1760010736970,0.23163808,4379.4,4379.3,0.2341]
[1760010737174,0.61033808,4379.4,4379.3,0.2341]
[1760010737674,0.61033808,4379.4,4379.3,41.0341]
[1760010742482,0.61033808,4379.4,4379.3,40.9784]
[1760010743175,0.61033808,4379.4,4379.3,41.0341]
[1760010743478,0.61033808,4379.4,4379.3,40.9784]
[1760010743676,0.61033808,4379.4,4379.3,41.0341]
[1760010744880,1.02122808,4379.4,4379.3,41.0341]
[1760010745477,0.61033808,4379.4,4379.3,41.0341]
[1760010746879,0.38133808,4379.4,4379.3,41.0341]
[1760010747075,0.79222808,4379.4,4379.3,41.0341]
[1760010747470,0.38133808,4379.4,4379.3,41.0341]
[1760010747873,0.79222808,4379.4,4379.3,41.445]
[1760010748081,0.79222808,4379.4,4379.3,41.0341]
[1760010748582,0.79222808,4379.4,4379.3,40.9784]
[1760010750582,0.79222808,4379.4,4379.3,41.043]
[1760010752372,0.79222808,4379.4,4379.3,40.9784]
[1760010752578,0.79222808,4379.4,4379.3,41.043]
[1760010756484,0.79222808,4379.4,4379.3,40.8]
[1760010756779,1.25126,4378.6,4378.5,3.3112]
[1760010756978,1.25131,4378.1,4378.0,2.0659842]
[1760010757178,1.48031,4378.1,4378.0,2.0659842]
[1760010757582,1.48031,4378.1,4378.0,42.8659842]
[1760010757782,4.46628726,4378.1,4378.0,42.8659842]
[1760010757985,4.46628726,4378.1,4378.0,40.8]
[1760010759586,0.498,4378.5,4378.4,0.2068]
[1760010759784,1.39237,4378.5,4378.4,0.2068]
[1760010759982,4.31308402,4378.5,4378.4,0.2068]
[1760010760182,4.54208402,4378.5,4378.4,0.2068]
[1760010760485,4.54208402,4378.5,4378.4,0.1034]
[1760010760683,0.75931,4378.1,4378.0,44.0078]
[1760010760991,0.98831,4378.1,4378.0,44.0078]
[1760010761694,0.3483,4378.1,4378.0,40.8]
[1760010761890,0.5773,4378.1,4378.0,40.8646]
[1760010762089,0.5773,4378.1,4378.0,40.8]
[1760010762879,0.3483,4378.1,4378.0,40.8]
[1760010763084,0.5773,4378.1,4378.0,40.8]
[1760010764385,0.98831,4378.1,4378.0,40.8]
[1760010764587,0.75931,4378.1,4378.0,40.8717]
[1760010764893,0.359,4378.8,4378.7,0.2296]
[1760010765088,0.41094,4378.8,4378.7,0.3013]
[1760010765286,0.229,4378.9,4378.6,0.41096]
[1760010765287,0.63993,4378.9,4378.8,0.3013]
[1760010765591,0.63993,4378.9,4378.8,41.1013]
[1760010765791,0.76993,4378.9,4378.8,41.1013]
[1760010765986,0.41093,4378.9,4378.8,41.1013]
[1760010766192,0.63993,4378.9,4378.8,41.1013]
[1760010766584,0.41093,4378.9,4378.8,41.1013]
[1760010766795,0.63993,4378.9,4378.8,41.51224]
[1760010767485,0.63993,4378.9,4378.8,41.1013]
[1760010768092,0.41093,4378.9,4378.8,41.1013]
[1760010768491,3.62132808,4379.4,4379.3,0.3013]
[1760010768800,1.00152808,4379.4,4379.3,0.3013]
[1760010769101,1.00152808,4379.4,4379.3,41.1013]
[1760010769294,0.77252808,4379.4,4379.3,41.1013]
[1760010769594,1.00152808,4379.4,4379.3,41.1013]
[1760010771290,0.77252808,4379.4,4379.3,41.1013]
[1760010771488,1.00152808,4379.4,4379.3,41.1013]
[1760010776595,0.41352808,4379.4,4379.3,41.1013]
[1760010778901,0.78962808,4379.4,4379.3,41.1013]
[1760010780900,0.78962808,4379.4,4379.3,41.0296]
[1760010783103,3.73847432,4379.4,4379.3,40.8]
[1760010783501,1.27691,4379.1,4379.0,3.2078]
[1760010783697,1.50591,4379.1,4379.0,3.2078]
[1760010783899,4.42367322,4379.1,4379.0,44.0078]
[1760010786105,0.41352808,4379.4,4379.3,0.2116]
[1760010786305,0.41352808,4379.4,4379.3,0.2777]
[1760010786515,1.13242808,4379.4,4379.3,0.2116]
[1760010786711,1.50852808,4379.4,4379.3,0.2116]
[1760010786915,1.50852808,4379.4,4379.3,0.1058]
[1760010787120,1.50852808,4379.4,4379.3,0.2116]
[1760010787319,1.01862808,4379.4,4379.3,0.2777]
[1760010788417,0.37873808,4379.4,4379.3,0.2777]
[1760010788609,0.64252808,4379.4,4379.3,0.2777]
[1760010789012,0.60773808,4379.4,4379.3,0.6886]
[1760010789216,1.01862808,4379.4,4379.3,0.2777]
[1760010789411,0.78962808,4379.4,4379.3,0.2777]
[1760010789615,0.00263808,4379.4,4379.3,0.2777]
[1760010789918,0.64252808,4379.4,4379.3,0.2777]
[1760010790119,0.41352808,4379.4,4379.3,0.6886]
[1760010790310,0.00263808,4379.4,4379.3,0.6886]
[1760010790710,0.00263808,4379.4,4379.3,41.4886]
[1760010792714,0.00263808,4379.4,4379.3,46.4886]
[1760010793822,0.41352808,4379.4,4379.3,46.4886]
[1760010794019,1.27686,4379.7,4379.6,0.2116]
[1760010794216,1.27686,4379.7,4379.6,0.1058]
[1760010794416,4.31382212,4379.7,4379.6,0.1058]
[1760010795124,4.31560062,4379.7,4379.6,0.1058]
[1760010796421,4.31560062,4379.7,4379.6,0.2116]
[1760010796722,3.82570062,4379.7,4379.6,0.2777]
[1760010797425,1.0177385,4379.7,4379.6,0.68857]
[1760010798114,0.0017785,4379.7,4379.6,0.68857]
[1760010798520,0.0017785,4379.7,4379.6,5.68857]
[1760010798726,0.1826,4379.9,4379.8,0.68125]
[1760010799727,0.18502911,4379.9,4379.8,41.48417419]
[1760010799914,0.00242911,4379.9,4379.8,41.48417419]
[1760010801925,0.00242911,4379.9,4379.8,41.71317419]
[1760010804021,0.1826,4380.1,4380.0,0.67093]
[1760010804324,0.63977,4380.6,4380.5,0.41078]
[1760010804526,0.63977,4380.6,4380.5,3.61858]
[1760010804826,0.78686,4380.8,4380.7,0.41076]
[1760010805027,0.78926385,4380.8,4380.7,0.41076]
[1760010805628,0.78687,4380.7,4380.6,0.41077]
[1760010805820,0.41077,4380.6,4380.5,3.2078]
[1760010806121,0.78687,4380.6,4380.5,3.61858]
[1760010806521,1.04217,4380.6,4380.5,44.0078]
[1760010806722,6.04217,4380.6,4380.5,40.8]
[1760010806922,1.04553,4380.0,4379.9,3.2078]
[1760010807216,1.42163,4380.0,4379.9,3.2078]
[1760010807426,1.42163,4380.0,4379.9,44.0078]
[1760010807629,4.41172044,4380.0,4379.9,44.0078]
[1760010808625,4.64072044,4380.0,4379.9,44.0078]
[1760010812826,0.5209,4380.0,4379.9,44.0078]
[1760010813022,0.229,4380.0,4379.9,44.41864]
[1760010813229,1.15553,4380.0,4379.9,44.0078]
[1760010816029,0.7447,4380.0,4379.9,44.41864]
[1760010816836,1.15553,4380.0,4379.9,44.0078]
[1760010821845,1.15553,4380.0,4379.9,44.41864]
[1760010822243,0.92653,4380.0,4379.9,44.41864]
[1760010822442,1.15553,4380.0,4379.9,44.41864]
[1760010823847,0.229,4380.0,4379.9,44.41864]
[1760010824445,1.15123,4380.0,4379.9,44.0078]
[1760010828749,1.15123,4380.0,4379.9,40.8]
[1760010831050,1.15123,4380.0,4379.9,41.21084]
[1760010833853,0.92223,4380.0,4379.9,41.21084]
[1760010834047,1.15123,4380.0,4379.9,41.21084]
[1760010834251,0.5114,4380.0,4379.9,41.21084]
[1760010834454,0.6398,4380.3,4380.2,0.41081]
[1760010834854,1.0147,4380.3,4380.2,0.41081]
[1760010835055,0.41082,4380.1,4380.0,0.41083]
[1760010835253,0.78572,4380.1,4380.0,0.41083]
[1760010835455,0.3749,4380.1,4380.0,0.41083]
[1760010836753,0.78572,4380.1,4380.0,0.41083]
[1760010837356,0.3749,4380.1,4380.0,3.61863]
[1760010837560,0.63981,4380.3,4380.2,0.41081]
[1760010837759,0.6039,4380.3,4380.2,0.41081]
[1760010837954,1.0147,4380.3,4380.2,0.41081]
[1760010838857,0.229,4380.3,4380.1,0.41082]
[1760010839054,0.3673,4380.2,4380.1,0.41082]
[1760010839457,0.77812,4380.2,4380.1,0.41082]
[1760010840154,0.77812,4380.2,4380.0,3.2078]
[1760010840155,1.26462,4380.1,4380.0,3.2078]
[1760010841058,1.7958085,4380.1,4380.0,3.2078]
[1760010841255,0.55173,4380.0,4379.9,40.8]
[1760010841457,1.4502185,4380.0,4379.9,40.8]
[1760010841660,4.43681722,4380.0,4379.9,40.8]
[1760010843167,1.88091,4379.9,4378.9,0.41093]
[1760010843363,8.65868722,4380.0,4378.1,2.00628359]
[1760010843364,1.26472,4379.1,4379.0,3.2078]
[1760010843665,0.9947,4378.5,4378.4,3.2078]
[1760010843860,0.1409,4378.0,4377.9,3.2078]
[1760010844061,0.9947,4378.0,4377.9,44.0078]
[1760010844268,0.9947,4378.0,4377.9,44.42157489]
[1760010844466,1.2237,4378.0,4377.9,44.42157489]
[1760010844764,1.2237,4378.0,4377.9,44.01054489]
[1760010845766,1.2237,4378.0,4377.9,40.80274489]
[1760010846761,1.2237,4378.0,4377.9,41.21377489]
[1760010847370,0.7372,4378.0,4377.9,40.80274489]
[1760010848566,0.1409,4378.5,4377.9,40.80274489]
[1760010848567,0.3673,4378.3,4377.9,40.80274489]
[1760010848775,0.3673,4378.3,4378.2,0.411]
[1760010849370,0.3673,4378.3,4378.2,41.211]
[1760010849560,0.229,4378.4,4378.2,41.211]
[1760010849760,0.3673,4378.7,4378.2,40.8]
[1760010849971,0.229,4378.6,4378.5,0.41096]